Cogmind - Beta 16.1 @@@ ROGUE MODE // 2026.03.31 @ 09:36:41 Player: Gatamar Result: Destroyed by Y-54 Guardian with Gatling Laser Performance ------------- Evolutions (0) 0 Regions Visited (3) 600 Robots Destroyed (31) 155 Value Destroyed (784) 784 Prototype IDs (1) 20 Alien Tech Used (0) 0 Bonus (0) 0 TOTAL SCORE: 1559 Bonus ------- None Cogmind --------- Core Integrity 0/250 Matter 35/300 Energy 200/200 System Corruption 0% Temperature Cool (18) Movement Treading (240) Ox1 Location -7/Recycling Parts ------- > --- POWER (1) -------- Subdweller Power Source > --- PROPULSION (2) --- Improved Treads > --- UTILITY (2) ------ Medium Storage Unit Gun Armor > --- WEAPON (2+2) ----- Heavy Assault Rifle Heavy Assault Rifle (+) Light Cannon (+) Mini Grenade Launcher > --- INVENTORY (10) --- Ion Engine Light Ion Engine Terrain Scanner Datajack Peak State ------------ > --- POWER ------------ Subdweller Power Source > --- PROPULSION ------- Improved Treads Improved Treads > --- UTILITY ---------- Medium Storage Unit Gun Armor > --- WEAPON ----------- Heavy Assault Rifle Heavy Assault Rifle Light Cannon Mini Grenade Launcher > --- INVENTORY -------- Ion Engine Light Ion Engine Terrain Scanner Datajack [Rating: 23] Favorites ----------- Power Ion Engine Engine Ion Engine Propulsion Improved Treads Treads Improved Treads Utility Medium Storage Unit Device Terrain Scanner Storage Medium Storage Unit Protection Gun Armor Weapon Light Cannon Energy Gun Small Laser Ballistic Gun Heavy Assault Rifle Ballistic Cannon Light Cannon Launcher Mini Grenade Launcher Build | -11 -10 -10 -7 ------- Run | Yrd Mat Sub Rec Slots Evolved . | . . . . Power . | . . . . Propulsion . | . . . . Utility . | . . . . Weapon . | . . . . Parts Attached 24 | 7 9 8 . Power 2 | 1 . 1 . Engine 2 | 1 . 1 . Core . | . . . . Reactor . | . . . . Propulsion 6 | 2 2 2 . Treads 6 | 2 2 2 . Leg . | . . . . Wheel . | . . . . Hover . | . . . . Flight . | . . . . Utility 5 | 1 3 1 . Device 2 | . 2 . . Storage 2 | 1 1 . . Processor . | . . . . Hackware . | . . . . Protection 1 | . . 1 . Artifact . | . . . . Weapon 11 | 3 4 4 . Energy Gun 3 | 3 . . . Energy Cannon . | . . . . Ballistic Gun 4 | . 2 2 . Ballistic Cannon 2 | . 2 . . Launcher 2 | . . 2 . Special Weapon . | . . . . Impact Weapon . | . . . . Slashing Weapon . | . . . . Piercing Weapon . | . . . . Special Melee Weapon . | . . . . Unidentified Prototypes 1 | . . 1 . Parts Lost 5 | . . 4 1 Power . | . . . . Propulsion 3 | . . 2 1 Utility . | . . . . Weapon 2 | . . 2 . Highest Loss Streak 2 | . . 2 1 To Critical Strikes 1 | . . 1 . Average Backups 7 | 2 7 7 4 Power 1 | . 1 1 2 Propulsion 1 | 1 1 1 . Utility . | . . . 1 Weapon 3 | . 3 3 . Tool/Special . | . . . . Unused Backups 4 | . 2 . 2 Power 1 | . . . 1 Propulsion 2 | . 2 . . Utility . | . . . . Weapon . | . . . . Tool/Special 1 | . . . 1 Average Slot Usage (%) 98 | . 94 99 96 Engine 13 | . 14 13 11 Treads 27 | . 28 27 18 Device 11 | . 9 12 . Storage 13 | . 14 13 11 Protection 1 | . . 1 11 Energy Gun 1 | . 4 . . Ballistic Gun 5 | . 13 3 22 Ballistic Cannon 17 | . 9 19 11 Launcher 5 | . . 7 11 Peak Build Rating 23 | 6 12 23 23 Average Rating 11 | 4 10 11 22 On Entrance 9 | . 6 10 23 Avg Prop Armor Cover (%) . | . . . . Naked Turns . | . . . . Heaviest Build 29 | 13 22 29 29 Greatest Support 46 | 40 46 46 46 Greatest Overweight (x) . | . . . . Average Overweight (x) . | . . . . Largest Inventory Capacity 10 | 8 10 10 10 Average Capacity 9 | 6 8 10 10 Most Carried 9 | 4 8 9 4 Average Carried 7 | 2 7 7 4 Final Capacity 10 | 8 10 10 10 Final Carried 8 | 4 8 4 4 Class Distribution -------------------- 90% | Mutant 9% | Gunner Dominant Class ---------------- Mutant | -10/Materials Mutant | -10/Subcaves Gunner | -7/Recycling Resources | -11 -10 -10 -7 ----------- Run | Yrd Mat Sub Rec Matter Collected 1068 | 249 338 481 . Remotely . | . . . . Salvage Created 725 | . 496 229 . Parts 49 | . 29 20 . Haulers Intercepted 1 | . 1 . . Recyclers Shooed 2 | . 2 . . Parts Field Recycled . | . . . . Retrieved Matter . | . . . . Parts Self-Destructed 26 | . . 26 . Prevented . | . . . . Parts Restored . | . . . . Kills | -11 -10 -10 -7 ------- Run | Yrd Mat Sub Rec Combat Hostiles Destroyed 22 | . 6 16 . Melee 1 | . . 1 . Guns 7 | . 6 1 . Cannons 3 | . . 3 . AOE 11 | . . 11 . Classes Destroyed 10 | . 6 4 . Worker 2 | . 2 . . Builder 1 | . 1 . . Hauler 1 | . 1 . . Recycler 1 | . 1 . . Turret 2 | . . 2 . Watcher 2 | . 2 . . Swarmer 6 | . . 6 . Grunt 6 | . 6 . . Artisan 1 | . . 1 . Subdweller 10 | . . 10 . Best Kill Streak 5 | . 5 4 . Combat Bots Only 4 | . 2 4 . Max Kills in Single Turn 2 | . 1 2 . Gunslinging . | . . . . Exploded 2 | . . 2 . Melee 1 | . . 1 . Uniques/NPCs Destroyed . | . . . . Combat | -11 -10 -10 -7 -------- Run | Yrd Mat Sub Rec Hostile Shots Fired 259 | . 29 182 48 Missed 83 | . 6 65 12 Hits 176 | . 23 117 36 Projectile 176 | . 23 117 36 Critical Strikes 1 | . . 1 . Damage Taken 1671 | . 306 1085 280 Core 252 | . 77 141 34 Absorbed by Shields . | . . . . Core Remaining (%) 100 | 100 . . . Volleys Fired 140 | . 38 102 . Largest 2 | . 2 2 . Hottest 60 | . 60 60 . Shots Fired 212 | . 76 136 . Gun 75 | . 68 7 . Cannon 111 | . 8 103 . Launcher 26 | . . 26 . Special . | . . . . Kinetic 186 | . 76 110 . Thermal . | . . . . Explosive 26 | . . 26 . Electromagnetic . | . . . . Robot Hit Streak 14 | . 13 14 . Robot Miss Streak 5 | . 3 5 . Penetration Max . | . . . . Secondary Targets . | . . . . Shots Hit Robots 89 | . 48 41 . Core Hits 50 | . 17 33 . Critical Kills 1 | . 1 . . Critical Parts Destroyed . | . . . . Critical Strikes 2 | . 2 . . Destroy 1 | . 1 . . Blast 1 | . 1 . . Melee Attacks . | . . . . Impact . | . . . . Slashing . | . . . . Piercing . | . . . . Sneak Attacks . | . . . . Combat Hostiles . | . . . . Follow-up Attacks . | . . . . Damage Inflicted 2538 | . 770 1756 12 Guns 777 | . 719 58 . Cannons 436 | . 51 385 . Explosions 1311 | . . 1311 . Melee . | . . . . Ramming 14 | . . 2 12 Kinetic 1213 | . 770 443 . Thermal . | . . . . Explosive 1311 | . . 1311 . Electromagnetic . | . . . . Impact . | . . . . Slashing . | . . . . Piercing . | . . . . Highest Corruption . | . . . . Average Corruption . | . . . . Corruption Purged . | . . . . Corruption Blocked . | . . . . Overload Shots . | . . . . Overflow Damage 11 | . . 11 . Projectiles . | . . . . Explosions 11 | . . 11 . Melee . | . . . . Knockbacks 8 | . 1 7 . Impact . | . . . . Kinetic 8 | . 1 7 . Secondary . | . . . . Self-Inflicted Damage 33 | . . 33 . Shots 1 | . . 1 . Rammed 7 | . . 1 6 Targets Rammed 8 | . . 2 6 Kicked . | . . . . Crushed 1 | . . 1 . Highest Temperature 11 | . 4 11 . Average Temperature 3 | . 2 8 . Received Heat Transfer 726 | . 171 471 84 Siege Activations . | . . . . Martial Activations . | . . . . Shielding Activations . | . . . . Robots Disrupted . | . . . . Combat Hostiles . | . . . . Robots Corrupted . | . . . . Combat Hostiles . | . . . . Parts Fried . | . . . . Impact Corruptions . | . . . . Robots Melted . | . . . . Combat Hostiles . | . . . . Parts Melted . | . . . . Heat Transferred . | . . . . Parts Sabotaged . | . . . . Parts Stolen . | . . . . Parts Stripped . | . . . . Power Chain Reactions . | . . . . Alert | -11 -10 -10 -7 ------- Run | Yrd Mat Sub Rec Maximum Alert Level . | . . . . Low Security (%) 100 | 100 100 . 100 Level 1 . | . . . . Level 2 . | . . . . Level 3 . | . . . . Level 4 . | . . . . Level 5 . | . . . . High Security . | . . . . Max Security . | . . . . Peak Influence 57 | . 54 . 57 Initial 57 | . . . 57 Average 14 | . 15 . 52 Influence Increases 468 | . 183 285 . Destroy 0b10 Robot/C 280 | . 120 160 . Destroy 0b10 Robot/NC 35 | . 35 . . Destroy Leader 46 | . 26 20 . Destroy Structure 2 | . 2 . . Lose Combat Pursuer 105 | . . 105 . Influence Decreases 431 | . 183 164 84 Entered New Map 64 | . . . 64 Time Decay 327 | . 183 134 10 Lost Part 40 | . . 30 10 Squads Dispatched 1 | . 1 . . Investigation 1 | . 1 . . Extermination . | . . . . Reinforcement . | . . . . Assault . | . . . . Garrison . | . . . . Intercept . | . . . . Searches Triggered . | . . . . Construction Impeded . | . . . . Haulers Reinforced . | . . . . Active Scanning Responses . | . . . . Cargo Convoy Interrupts . | . . . . Stealth | -11 -10 -10 -7 --------- Run | Yrd Mat Sub Rec Distress Signals 1 | . 1 . . Communications Jammed . | . . . . Distress Signals . | . . . . Times Spotted 32 | . 11 20 1 Peak Tracking Total 4 | . 3 4 1 Tactical Retreats 2 | . . 2 . Traps | -11 -10 -10 -7 ------- Run | Yrd Mat Sub Rec Traps Triggered . | . . . . Indirectly . | . . . . Trap Hack Attempts . | . . . . Triggered . | . . . . Disarmed . | . . . . Reprogrammed . | . . . . Reused . | . . . . Traps Extracted . | . . . . Installed . | . . . . Triggered . | . . . . Machines | -11 -10 -10 -7 ---------- Run | Yrd Mat Sub Rec Machines Disabled 3 | . . 3 . Max in Single Turn 1 | . . 1 . Machines Repaired . | . . . . Machines Dismantled . | . . . . Machines Sabotaged . | . . . . Overloaded Fab Kills . | . . . . Hacking | -11 -10 -10 -7 --------- Run | Yrd Mat Sub Rec Machines Accessed 3 | . 2 1 . Terminals 2 | . 2 . . Fabricators . | . . . . Repair Stations . | . . . . Recycling Units . | . . . . Scanalyzers . | . . . . Garrison Access . | . . . . Total Hacks 11 | . 6 5 . Successful 7 | . 2 5 . Failed 4 | . 4 . . Catastrophic . | . . . . Database Lockouts . | . . . . Manual 2 | . 2 . . Terminals 6 | . 6 . . Fabricators . | . . . . Repair Stations . | . . . . Recycling Units . | . . . . Scanalyzers . | . . . . Garrison Access . | . . . . Terminal Hacks 6 | . 1 5 . Record 5 | . . 5 . Zone Layout 1 | . 1 . . Fabricator Hacks . | . . . . Repair Station Hacks . | . . . . Recycling Unit Hacks . | . . . . Scanalyzer . | . . . . Garrison Access Hacks . | . . . . Unauthorized Hacks 1 | . 1 . . Terminals 1 | . 1 . . Botnet 1 | . 1 . . Fabricators . | . . . . Repair Stations . | . . . . Recycling Units . | . . . . Scanalyzers . | . . . . Garrison Access . | . . . . Data Cores Recovered . | . . . . Used . | . . . . Hacking Detections 2 | . 2 . . Full Trace Events 1 | . 1 . . Feedback Events . | . . . . Feedback Blocked . | . . . . Robot Schematics Acquired . | . . . . Robots Built . | . . . . Authchips . | . . . . Time . | . . . . Total Robot Build Rating . | . . . . Part Schematics Acquired . | . . . . Parts Built . | . . . . Authchips . | . . . . Time . | . . . . Total Part Build Rating . | . . . . Part Studies Acquired . | . . . . Parts Repaired . | . . . . Time . | . . . . Parts Recycled . | . . . . Recycled Matter . | . . . . Retrieved Matter . | . . . . Retrieved Components . | . . . . Parts Scanalyzed . | . . . . Part Schematics Acquired . | . . . . Parts Damaged . | . . . . Bothacking | -11 -10 -10 -7 ------------ Run | Yrd Mat Sub Rec Used RIF Installer . | . . . . Robots Hacked . | . . . . Non-combat . | . . . . Combat . | . . . . Robot Hacks Applied . | . . . . Relay Couplers Released . | . . . . Fabnet Peak Effective % . | . . . . Robots Rewired . | . . . . Allies Hacked . | . . . . Hacks Repelled . | . . . . Allies | -11 -10 -10 -7 -------- Run | Yrd Mat Sub Rec Total Allies . | . . . . Largest Group . | . . . . Highest-Rated Group . | . . . . Highest-Rated Ally . | . . . . Total Orders . | . . . . Ally Attacks . | . . . . Total Damage . | . . . . Kills . | . . . . Allies Corrupted . | . . . . Allies Melted . | . . . . Intel | -11 -10 -10 -7 ------- Run | Yrd Mat Sub Rec Active Infowar (turns) 2688 | . 471 2217 . Terrain 2684 | . 467 2217 . Structural 4 | . 4 . . Robot Analysis Total . | . . . . Derelict Logs Recovered 2 | . . 2 . Drone Launches . | . . . . Drone Recoveries . | . . . . Exploration | -11 -10 -10 -7 ------------- Run | Yrd Mat Sub Rec Turns Passed 3381 | 110 724 2526 21 Spaces Moved 1754 | 63 276 1409 6 Core 4 | 4 . . . Treads 1750 | 59 276 1409 6 Legs . | . . . . Wheels . | . . . . Hover . | . . . . Flight . | . . . . Fastest Speed 50 | 50 160 160 160 Average Speed 159 | 153 160 160 160 Slowest Speed 160 | 160 160 160 160 Overloaded Moves . | . . . . Propulsion Burnouts . | . . . . Robots Hopped . | . . . . Potential Cave-ins . | . . . . Cave-ins Triggered . | . . . . Exploration Rate (%) 32 | 5 39 84 3 Regions Visited 3 Branch Regions 2 Pre-discovered Areas 1 | . . 1 . Known Exits Taken . | . . . . Unknown Exits Taken 3 | 1 1 1 . Scrap Searched . | . . . . Spaces Dug 10 | . . 10 . Terrain Destroyed 111 | . . 111 . Melee . | . . . . Projectile . | . . . . AOE 111 | . . 111 . Terrain Rammed . | . . . . Walls Destroyed . | . . . . Machines Disabled . | . . . . Actions | -11 -10 -10 -7 --------- Run | Yrd Mat Sub Rec Total 2114 | 74 486 1542 12 Wait 162 | . 142 20 . Move 1751 | 62 275 1408 6 Hop . | . . . . Pick Up 13 | 4 8 1 . Fast Attach 13 | 6 7 . . Attach 7 | 1 . 6 . Detach 1 | 1 . . . Swap 6 | . 3 3 . Drop 13 | . 13 . . Fire 140 | . 38 102 . Melee . | . . . . Ram . | . . . . Kick . | . . . . Crush 8 | . . 2 6 Escape Stasis . | . . . . Rewire . | . . . . Trap . | . . . . Miscellaneous . | . . . . Route ------- -11/Scrapyard -10/Materials (discovered 3 exits: [*Mat x2] / *Sub) -10/Subcaves (discovered 3 exits: [*Mat x2] / [*Rec]) -7/Recycling History --------- Turn | Location | Event 13 | -11/Scrapyard | Discovered new exit (range 16) 111 | -11/Scrapyard | Entered Materials 317 | -10/Materials | Build established: Mutant 400 | -10/Materials | Discovered new exit (range 7) 634 | -10/Materials | Discovered new exit (range 16) 800 | -10/Materials | Discovered new exit (range 7) 835 | -10/Materials | Entered Subcaves 854 | -10/Subcaves | Learned Materials garrison access intel 858 | -10/Subcaves | Learned Materials garrison access intel 1058 | -10/Subcaves | A swath of the cavern ceiling suddenly collapsed 1459 | -10/Subcaves | Discovered new exit (range 7) 1856 | -10/Subcaves | Visited Clippyterm 1861 | -10/Subcaves | Learned location of Section 7 (-3) 1861 | -10/Subcaves | Learned Research security intel 1999 | -10/Subcaves | Ambushed by angry Subdweller bent on revenge 2271 | -10/Subcaves | A swath of the cavern ceiling suddenly collapsed 2487 | -10/Subcaves | Shifting Twisted Machinery released Piercing Trap 2547 | -10/Subcaves | Shifting Twisted Machinery released Sub. Power Source 2614 | -10/Subcaves | Discovered new exit (range 5) 2835 | -10/Subcaves | A Subdweller sparked back to life 2835 | -10/Subcaves | A Subdweller sparked back to life 2835 | -10/Subcaves | A Subdweller sparked back to life 2981 | -10/Subcaves | Core integrity fell below 50% 3051 | -10/Subcaves | Found Prototype Protection 3052 | -10/Subcaves | Identified Gun Armor 3053 | -10/Subcaves | Attached Gun Armor, gained temporary slots: Weapon x2 3321 | -10/Subcaves | Discovered new exit (range 16) 3334 | -10/Subcaves | Core integrity fell below 20% 3360 | -10/Subcaves | Build established: Gunner 3361 | -10/Subcaves | Entered Recycling 3382 | -7/Recycling | Destroyed by Y-54 Guardian with Gatling Laser Last Messages --------------- slot. 03056_ Subatomizers dissect the Sub. Beam Cannon. 03303_ Acquired 6 matter. 03308_ Acquired 2 matter. 03321_ EXIT=FOUND 03329_ Acquired 6 matter. 03335_ Acquired 45 matter. 03337_ Machine disabled. 03337_ Autobeam Turret destroyed. 03339_ Machine disabled. 03345_ Destroyed Autobeam. 03345_ Autobeam Turret destroyed. 03360_ The unstable cave ceiling collapses. LOCATION=UNKNOWN GOAL=ESCAPE 03364_ Y-54 Guardian springs to life. 03371_ Slammed into Y-54 Guardian. 03375_ Imp. Treads destroyed. 03376_ Slammed into Y-54 Guardian. Map ----- +----------------------------------------------------+ | ??????????????????????????????????????? | | ??????????????????????????????????????? | | ??????????????????????????????????????? | | ??????????????????????????????????????? | | ??????????????????????????????????????? | | ??????????????????????????????????????? | | ??????????????????????????????????????? | | ??????????????????????????????????????? | | ??????????????????????????????????????? | | ??????????????????????????????????????? | | ??????????????????????????????????????? | | ??????????????????????????????????????? | | ??????????????????????????????????????? | | ??????????????????????????????????????? | | ??????????????????????????????????????? | | ??????????????????????????????????????? | | ??????????????????????????????????????? | | ??????????????????????????????????????? | | ??????????????????????????????????????? | | ??????????????????????????????????????? | | ??????????????????????????????????????? | | ??????????????????????????????????????? | | ???????????###????????????????????????? | | ??????###### #########+####???????????? | | ??????# ????????? | | ??????# @ ????????? | | ??????# Y ????????? | | ??????######################??????????? | | ??????????????????????????????????????? | | ??????????????????????????????????????? | | ??????????????????????????????????????? | | ??????????????????????????????????????? | | ??????????????????????????????????????? | | ??????????????????????????????????????? | | | | | | | | | | | | | | | | | | | | | | | | | | | | | | | | | +----------------------------------------------------+ Best States ------------- Heat Dissipation 25 Energy Generation 15 Energy Capacity 250 Matter Stores 300 Matter Capacity 300 Sight Range 16 Terrain Scan Range 14 Terrain Scan Density 10 Armor Coverage 60 Evasion (%) 40 Recoil Reduction 2 Item Schematics ----------------- None Robot Schematics ------------------ None Fabricated ------------ Nothing Repaired ---------- Nothing Studied --------- None Alien Tech Used ----------------- None Achievements -------------- None Challenges ------------ None Game ------ Seed DisintegrationKineticFist Manual? 0 Play Time 00:16:12 Cumulative 30.0 hours Start 2026.03.31 @ 09:20:45 End 2026.03.31 @ 09:36:41 Sessions 1 Manual Loads 0 Difficulty Rogue Special Mode None Game No. 77 Rogue 77 Adventurer 0 Explorer 0 Win Type - Total 0 Types 0/0/0/0/0/0/0/0/0/0 Lore% 26 Gallery% 28 Achievement% 21 Wizard Run 0 Options --------- Layout 2 ASCII 0 Keyboard 0 Movement Mouse Keybinds 0 Fullscreen 1 Font 32/SmallcapsGlow Map View 50x44 Zoom Use 0% Tactical HUD 1 Map Filters NONE Filters NONE Steam 1 RUN: e337b80e-2aa4-44ae-83e7-702d6aea6110